bitfinex/quotes_ETHUSD_20251230
["timestamp","ask_amount","ask_price","bid_price","bid_amount"]
[1767136768358,2.4367,2974.5,2974.0,0.883]
[1767136768558,2.46361098,2974.5,2974.0,0.883]
[1767136768864,2.4367,2974.5,2974.0,0.883]
[1767136769259,2.4367,2974.5,2974.0,3.2316]
[1767136771572,2.4367,2974.3,2973.6,3.82228154]
[1767136771777,2.4367,2974.3,2973.3,6.59484914]
[1767136771965,2.4367,2974.3,2973.3,2.3486]
[1767136772470,2.4367,2974.3,2973.4,2.3496]
[1767136773677,2.4367,2974.2,2973.4,2.3496]
[1767136773980,3.01658828,2974.2,2973.4,2.3496]
[1767136774159,3.01658828,2974.2,2973.6,2.3486]
[1767136775181,4.45096691,2974.7,2973.5,0.0336304]
[1767136775182,0.002,2975.3,2974.1,4.44896691]
[1767136775357,0.002,2975.3,2974.7,2.3486]
[1767136775563,2.4387,2975.3,2974.8,2.3486]
[1767136775762,2.4387,2975.3,2974.7,0.883]
[1767136775763,2.4387,2975.3,2974.5,2.3486]
[1767136776084,2.4387,2975.3,2974.7,2.3486]
[1767136777480,2.4387,2975.3,2974.7,0.65934876]
[1767136777675,0.002,2975.7,2974.8,2.3486]
[1767136777871,2.4387,2975.7,2974.8,2.3486]
[1767136780575,2.4367,2975.6,2974.8,2.3486]
[1767136781282,2.4367,2975.6,2974.9,2.3486]
[1767136782257,2.4387,2975.3,2974.9,3.2316]
[1767136782465,2.4387,2975.3,2974.9,2.3486]
[1767136782662,2.4367,2975.2,2974.7,3.2316]
[1767136783058,2.4367,2975.2,2974.7,2.3486]
[1767136783266,2.4367,2975.2,2974.7,2.91964626]
[1767136785310,2.4367,2975.2,2974.1,2.3486]
[1767136785473,2.4367,2975.2,2974.5,0.883]
[1767136786775,2.4367,2975.2,2974.6,2.376]
[1767136789613,2.4367,2975.2,2974.5,0.883]
[1767136790386,2.4367,2975.2,2974.1,2.376]
[1767136790387,2.282,2975.1,2974.1,2.376]
[1767136790571,2.282,2974.9,2974.1,3.259]
[1767136790772,2.282,2974.9,2974.2,2.376]
[1767136791304,2.282,2974.9,2974.0,2.377]
[1767136791611,2.282,2974.7,2974.0,3.26]
[1767136793313,2.282,2974.7,2974.1,2.376]
[1767136798595,2.282,2974.6,2974.0,0.884]
[1767136798813,2.282,2974.5,2974.0,0.001]
[1767136799506,2.282,2974.4,2974.0,0.001]
[1767136801104,2.282,2974.4,2974.0,2.377]
[1767136801508,2.282,2974.4,2974.0,0.001]
[1767136802103,2.282,2974.4,2974.0,2.377]
[1767136802614,2.282,2974.4,2974.0,0.001]
[1767136802810,2.5102,2974.4,2973.9,0.883]
[1767136803389,2.5102,2974.4,2973.9,3.2106]
[1767136804313,2.5102,2974.4,2974.0,0.001]
[1767136811613,2.5102,2974.4,2973.5,3.36298997]
[1767136811614,2.3541,2974.1,2973.6,2.3276]
[1767136811815,2.3541,2973.9,2973.4,2.3286]
[1767136812999,2.3541,2973.9,2973.4,0.001]
[1767136814226,2.3541,2974.1,2973.5,2.3276]
[1767136814408,2.71582092,2974.2,2973.7,2.3276]
[1767136814605,2.62568209,2974.1,2973.7,2.3276]
[1767136817018,2.62568209,2974.1,2973.5,2.4474]
[1767136817212,2.3468,2974.0,2973.5,2.4474]
[1767136818420,2.3468,2974.0,2973.4,0.001]
[1767136819201,2.3468,2973.9,2973.4,0.001]
[1767136819401,2.3468,2973.8,2973.6,0.001]
[1767136821026,2.3468,2973.8,2973.4,0.001]
[1767136823213,5.70951159,2973.8,2973.4,0.001]
[1767136823546,2.3468,2973.7,2973.4,0.001]
[1767136826717,2.3468,2973.7,2973.2,0.883]
[1767136827619,2.3468,2973.6,2973.4,0.001]
[1767136827832,2.3468,2973.6,2973.2,0.883]
[1767136828527,2.3468,2973.6,2973.2,3.3304]
[1767136832852,2.3468,2973.6,2973.2,2.4474]
[1767136833532,2.3468,2973.6,2973.0,2.4484]
[1767136833728,3.60036306,2973.6,2973.0,2.4484]
[1767136833935,2.3468,2973.4,2973.0,0.001]
[1767136835540,2.3468,2973.4,2973.0,2.4484]
[1767136843959,2.33708682,2973.4,2973.0,2.4484]
[1767136844555,2.33908682,2973.4,2973.0,2.4484]
[1767136852270,0.002,2973.8,2973.0,0.33434]
[1767136852434,0.002,2973.8,2973.4,2.4795]
[1767136852639,2.4664,2973.8,2973.2,2.4795]
[1767136857061,3.36240718,2974.1,2973.2,2.4795]
[1767136857372,1.7283,2974.0,2973.2,2.4795]
[1767136858657,1.7283,2973.9,2973.2,2.4795]
[1767136858948,1.7283,2973.9,2973.2,2.81585]
[1767136860567,1.7283,2973.9,2973.0,2.4805]
[1767136860568,1.7283,2973.6,2973.0,2.4805]
[1767136860757,1.7283,2973.6,2973.0,0.001]
[1767136861160,1.7283,2973.6,2973.0,2.4805]
[1767136861544,1.7283,2973.6,2972.9,0.001]
[1767136861756,1.7283,2973.6,2972.8,0.001]
[1767136861757,1.90133,2973.6,2972.8,0.001]
[1767136862774,1.7243,2973.1,2972.6,0.001]
[1767136863072,1.7243,2973.1,2972.3,2.4795]
[1767136864368,3.53595709,2973.6,2972.5,2.4795]
[1767136864551,1.6749,2973.5,2972.7,2.4795]
[1767136865446,1.6749,2973.5,2972.7,0.883]
[1767136865645,5.03964215,2973.8,2972.8,2.43983832]
[1767136865845,1.6749,2973.7,2972.8,2.4062]
[1767136866057,1.6749,2973.7,2972.9,2.4062]
[1767136868661,1.6749,2973.7,2972.9,2.4072]
[1767136871183,1.6749,2973.7,2973.0,2.4062]
[1767136871984,0.002,2973.8,2973.1,2.4062]
[1767136872184,0.002,2973.8,2973.3,2.4062]
[1767136872388,0.002,2973.8,2973.5,2.4062]
[1767136875183,1.6769,2973.8,2973.5,2.4062]
[1767136875390,0.002,2973.7,2973.5,2.4062]
[1767136876488,1.6749,2973.6,2973.1,3.36347407]
[1767136876792,0.002,2973.7,2973.2,2.2957]
[1767136876994,0.002,2973.7,2973.3,2.2957]
[1767136877595,1.6769,2973.7,2973.3,2.2957]
[1767136887297,1.6769,2973.7,2973.1,3.1787]
[1767136887480,1.6769,2973.7,2973.2,2.2957]
[1767136891222,0.002,2973.7,2973.2,2.2957]
[1767136891447,0.002,2973.7,2973.4,2.2957]
[1767136894318,1.6769,2973.7,2973.4,2.2957]
[1767136896623,1.6769,2973.7,2973.2,2.2957]
[1767136896821,1.6769,2973.7,2973.1,0.883]
[1767136897319,1.6769,2973.7,2973.1,3.1787]
[1767136897488,1.6769,2973.7,2973.2,2.2957]
[1767136900424,6.72771716,2973.7,2973.0,0.001]
[1767136900728,1.6739,2973.4,2972.7,2.2957]
[1767136901819,1.6739,2973.4,2973.0,0.001]
[1767136910150,1.6739,2973.4,2972.9,2.2957]
[1767136914656,1.6739,2973.4,2972.9,2.2967]
[1767136916959,1.6739,2973.4,2972.7,2.3141]
[1767136917163,1.6709,2973.2,2972.7,2.3141]
[1767136918160,1.6709,2973.2,2972.7,5.67804505]
[1767136918463,1.6709,2973.2,2972.8,2.3141]
[1767136921570,1.6709,2973.2,2972.8,2.3151]
[1767136921950,4.4504218,2972.9,2972.2,2.2856]
[1767136922270,3.36344287,2973.2,2972.2,0.001]
[1767136922271,1.6709,2972.6,2972.2,0.001]
[1767136922635,1.6709,2972.6,2972.1,2.2846]
[1767136922840,1.6709,2972.6,2972.0,0.001]
[1767136924288,3.36410741,2972.6,2972.0,0.001]
[1767136924589,1.6699,2972.5,2972.0,0.001]
[1767136925090,1.6699,2972.4,2972.0,0.001]
[1767136926791,1.6699,2972.4,2971.9,0.001]
[1767136928986,1.6699,2972.4,2971.6,0.001]
[1767136928987,1.6679,2972.3,2971.6,0.001]
[1767136929180,1.6649,2972.1,2971.4,2.2846]
[1767136929483,1.6649,2972.0,2971.4,2.2846]
[1767136929887,1.6649,2972.0,2971.2,5.65022904]
[1767136930074,1.6649,2972.0,2971.3,2.2846]
[1767136930273,1.6649,2972.0,2971.4,2.2846]
[1767136931804,1.6649,2972.4,2971.5,4.4504218]
[1767136931974,1.6649,2972.4,2971.6,2.2846]
[1767136932684,1.6649,2972.4,2971.8,2.2846]
[1767136934205,1.6649,2972.3,2971.8,2.2846]
[1767136937305,0.002,2972.4,2971.9,2.2726]
[1767136937712,1.6669,2972.4,2971.9,2.2726]
[1767136940195,0.002,2972.4,2971.9,2.2726]
[1767136940402,0.002,2972.4,2972.0,2.2726]
[1767136940713,1.6669,2972.4,2972.0,2.2726]
[1767136948216,0.6551,2972.1,2971.4,0.001]
[1767136948423,0.6551,2972.1,2971.4,2.74246709]
[1767136950912,0.6551,2972.1,2971.5,2.2736]
[1767136966154,0.6571,2972.1,2971.5,2.2736]
[1767136967368,0.6551,2972.0,2971.5,0.001]
[1767136967855,0.6551,2972.0,2971.5,2.2689]
[1767136969766,0.002,2972.1,2971.5,2.83244249]
[1767136969967,0.002,2972.1,2971.7,2.2679]
[1767136970375,0.6571,2972.1,2971.7,2.2679]
[1767136982290,0.002,2972.1,2971.7,2.2679]
[1767136983092,0.002,2972.1,2971.7,2.30155077]
[1767136984704,0.002,2972.1,2971.7,2.2679]
[1767136989502,0.6571,2972.1,2971.7,2.2679]
[1767136992505,0.002,2972.1,2971.7,2.2679]
[1767137002354,0.6591,2972.4,2971.8,2.3458]
[1767137014662,0.6571,2972.3,2971.8,2.3458]
[1767137017662,0.6571,2972.3,2971.8,2.3468]
[1767137025686,0.6571,2972.2,2971.8,2.3468]
[1767137032795,0.6571,2972.2,2971.8,0.001]
[1767137034597,0.6561,2972.1,2971.7,2.3525]
[1767137041820,0.002,2972.3,2971.7,2.3525]
[1767137042113,0.6581,2972.3,2971.7,2.3525]
[1767137078251,0.6581,2972.9,2972.3,2.4224]
[1767137078939,0.002,2973.3,2972.4,2.4224]
[1767137079141,0.002,2973.3,2972.8,2.4224]
[1767137079345,0.6601,2973.3,2972.8,2.4224]
[1767137080045,0.6581,2973.2,2972.8,2.4224]
[1767137080355,3.36341497,2973.2,2972.8,2.4224]
[1767137080524,0.6581,2973.1,2972.5,2.4224]
[1767137082057,0.6581,2973.1,2972.5,4.45347445]
[1767137082351,0.6581,2973.1,2972.6,2.4224]
[1767137085334,0.6581,2973.1,2972.5,0.87018546]
[1767137085540,0.6581,2973.1,2972.4,2.4224]
[1767137086063,0.6601,2973.1,2972.4,2.4224]
[1767137094477,0.6581,2973.0,2972.1,2.3396]
[1767137094645,0.6581,2973.0,2972.2,2.91003015]
[1767137096458,0.6581,2972.9,2972.2,2.91003015]
[1767137096848,4.02364371,2973.1,2972.2,2.91003015]
[1767137097170,0.6581,2973.0,2972.2,2.91003015]
[1767137102848,0.6581,2973.0,2972.2,6.27454052]
[1767137103048,0.6581,2973.0,2972.4,2.3396]
[1767137107577,0.6581,2973.0,2972.4,2.3406]
[1767137116387,0.6601,2973.0,2972.4,2.3406]
[1767137135013,0.6581,2972.9,2972.1,0.001]
[1767137135212,0.6581,2972.9,2972.1,2.2953]
[1767137135416,0.6571,2972.7,2972.1,2.2953]
[1767137136729,0.40237849,2972.8,2972.1,2.2953]
[1767137136891,0.6571,2972.9,2972.2,2.2943]
[1767137140123,0.6571,2972.8,2972.2,2.2943]
[1767137143125,0.002,2973.0,2972.2,2.2943]
[1767137143487,0.6591,2973.0,2972.2,2.2943]
[1767137143691,0.6591,2973.0,2972.3,2.2943]
[1767137143905,0.6591,2973.0,2972.4,2.2943]
[1767137147922,0.6591,2973.0,2972.4,2.2953]
[1767137176450,0.002,2973.0,2972.4,2.2953]
[1767137182052,0.002,2973.0,2972.5,2.4285]
[1767137183118,0.002,2973.1,2972.5,4.45155712]
[1767137183324,0.6591,2973.3,2972.4,3.36526009]
[1767137183325,0.002,2973.5,2972.9,4.45155712]
[1767137183542,0.6671,2973.9,2973.2,2.4285]
[1767137183861,0.6671,2973.9,2973.1,4.45155712]
[1767137184080,0.6671,2973.9,2973.2,2.4285]
[1767137185450,1.5521,2974.1,2973.4,2.4285]
[1767137185751,1.5521,2974.1,2973.6,2.4285]
[1767137186150,4.91446216,2974.1,2973.6,2.4285]
[1767137187336,1.5521,2974.1,2973.6,2.4285]
[1767137188853,4.9144659,2974.1,2973.6,2.4285]
[1767137189257,1.5521,2974.1,2973.6,2.4285]
[1767137192465,0.6711,2974.0,2973.6,2.4285]
[1767137198570,0.7667,2973.7,2972.7,1.32228154]
[1767137198749,0.49203937,2974.0,2972.8,3.36378081]
[1767137198750,0.7667,2973.5,2972.8,3.36378081]
[1767137198951,0.7667,2973.5,2972.9,2.4285]
[1767137208993,0.7667,2973.5,2972.9,2.4295]
[1767137230486,0.002,2973.6,2973.0,2.3557]
[1767137230691,0.7687,2973.9,2973.0,2.3557]
[1767137230998,1.27052011,2973.9,2973.0,2.3557]
[1767137231196,0.7687,2973.8,2973.0,2.3557]
[1767137231809,0.002,2973.6,2973.0,2.3557]
[1767137239921,0.002,2973.6,2973.0,3.36359085]
[1767137240224,0.002,2973.6,2973.1,2.4467]
[1767137240816,0.002,2973.6,2973.3,2.4467]
[1767137241017,0.7687,2973.9,2973.2,2.4467]
[1767137245300,0.7707,2973.9,2973.2,2.4467]
[1767137245936,0.7707,2973.8,2973.2,2.4467]
[1767137253342,0.7707,2973.7,2973.0,2.4467]
[1767137256240,0.7707,2973.7,2973.1,2.4467]
[1767137264749,0.7707,2973.6,2973.0,0.001]
[1767137265250,0.7707,2973.6,2973.0,2.4477]
[1767137279664,0.7707,2973.6,2973.0,0.001]
[1767137280168,0.7707,2973.6,2973.0,2.4893]
[1767137283337,0.7707,2973.6,2973.0,2.73833]
[1767137288173,0.7727,2973.6,2973.0,2.73833]
[1767137299266,0.7727,2973.6,2973.0,2.4893]
[1767137332025,0.7707,2973.2,2972.8,2.278]
[1767137332424,0.7707,2973.2,2972.5,2.278]
[1767137335431,0.7707,2973.2,2972.6,2.278]
[1767137338924,3.36492872,2973.6,2972.7,2.278]
[1767137338925,0.7707,2973.4,2972.7,2.278]
[1767137339134,0.41356287,2973.4,2972.7,2.278]
[1767137339314,1.18426287,2973.4,2972.7,2.278]
[1767137340540,0.41356287,2973.4,2972.7,2.278]
[1767137340710,0.7727,2973.6,2972.7,2.278]
[1767137340910,0.002,2973.6,2972.9,2.4855]
[1767137341528,0.7727,2973.6,2972.9,2.4855]
[1767137343632,0.002,2973.6,2972.9,2.4855]
[1767137343837,0.002,2973.7,2973.1,2.4855]
[1767137344030,0.002,2973.8,2973.3,2.4855]
[1767137345405,0.002,2973.6,2973.3,2.4855]
[1767137346221,0.002,2973.8,2973.1,2.4855]
[1767137346512,0.002,2973.8,2973.3,2.4855]
[1767137347819,0.002,2974.1,2973.5,2.4855]
[1767137348017,0.002,2974.3,2973.5,2.4855]
[1767137350245,0.002,2974.3,2973.7,2.4855]
[1767137350447,0.002,2974.3,2973.9,2.4855]
[1767137353554,0.002,2974.3,2973.8,0.58484271]
[1767137353728,0.002,2974.4,2973.9,2.4855]
[1767137353932,0.7122,2974.6,2973.8,3.94750586]
[1767137354238,0.7122,2974.6,2973.9,2.88025059]
[1767137354619,0.002,2975.0,2974.2,4.44874886]
[1767137354820,0.002,2975.4,2974.2,4.44874886]
[1767137354821,0.7222,2975.4,2974.7,2.4855]
[1767137355227,0.7222,2975.4,2974.2,2.4855]
[1767137355423,0.7222,2975.4,2974.5,3.3685]
[1767137355624,0.7222,2975.4,2974.5,2.4855]
[1767137356355,0.7222,2975.4,2974.6,2.3077]
[1767137357052,0.7202,2975.3,2974.6,2.3077]
[1767137357252,0.7202,2975.1,2974.6,2.3077]
[1767137360954,0.7222,2975.1,2974.6,2.3077]
[1767137378771,0.7222,2975.1,2974.5,0.001]
[1767137379267,0.7222,2975.1,2974.5,2.3087]
[1767137390303,0.002,2975.1,2974.6,2.3083]
[1767137390464,0.7222,2975.4,2974.8,2.3083]
[1767137392292,0.7222,2975.3,2974.8,2.3083]
[1767137393589,0.002,2975.1,2974.8,2.3083]
[1767137397912,0.7242,2975.1,2974.8,2.3083]
[1767137404802,0.7242,2975.1,2974.5,0.001]
[1767137405001,0.7242,2975.1,2974.6,2.2716]
[1767137406711,0.7222,2974.9,2974.5,0.001]
[1767137407381,0.7222,2974.9,2974.5,2.2726]
[1767137408796,0.7222,2974.9,2974.3,2.2716]
[1767137412212,0.7222,2974.9,2973.9,5.07954978]
[1767137412213,0.7212,2974.7,2974.0,2.2716]
[1767137412430,0.7212,2974.1,2973.6,0.883]
[1767137412726,0.7212,2974.1,2973.7,2.2716]
[1767137413589,0.7212,2974.1,2974.0,0.001]
[1767137415693,0.7212,2974.1,2973.6,0.883]
[1767137416222,0.7212,2974.1,2973.6,3.1546]
[1767137416621,0.7212,2974.1,2973.7,2.2787]
[1767137416823,0.7202,2974.6,2973.8,2.2787]
[1767137416993,0.7202,2974.6,2973.8,2.312327]
[1767137418516,0.7202,2974.6,2973.8,2.2787]
[1767137420619,0.7202,2974.5,2973.8,2.2787]
[1767137420798,0.7202,2974.2,2973.6,3.1617]
[1767137421931,0.7202,2974.2,2973.7,2.2787]
[1767137431429,0.7202,2974.5,2973.7,2.2787]
[1767137436156,0.7202,2974.4,2973.7,2.2787]
[1767137448063,0.7202,2974.2,2973.7,2.2787]
[1767137452558,0.7202,2974.2,2973.7,3.3628037]
[1767137452751,0.7202,2974.2,2973.8,2.3558]
[1767137456973,0.7222,2974.2,2973.8,2.3558]
[1767137469590,0.7222,2974.2,2973.8,2.3568]
[1767137471703,0.7222,2974.2,2973.5,0.001]
[1767137471704,0.7182,2974.1,2973.5,2.4341]
[1767137471901,0.7182,2973.9,2973.5,0.001]
[1767137473593,0.7182,2973.9,2973.5,2.4341]
[1767137477198,0.7182,2974.1,2973.6,2.4647]
[1767137477371,0.7182,2974.1,2973.6,2.49832927]
[1767137478207,0.7182,2974.1,2973.6,2.4647]
[1767137480376,0.002,2974.2,2973.7,2.4647]
[1767137481276,0.7202,2974.2,2973.7,2.4647]
[1767137483707,0.002,2974.2,2973.7,2.4647]
[1767137484523,0.002,2974.5,2973.9,2.4647]
[1767137484804,0.7222,2974.5,2973.9,2.4647]
[1767137485172,0.002,2974.2,2973.9,2.4647]
[1767137494775,0.7242,2974.5,2974.1,2.4647]
[1767137504274,0.7222,2974.9,2974.3,2.4647]
[1767137504427,0.7222,2974.9,2974.5,2.4647]
[1767137505661,0.7222,2974.9,2974.4,0.24983225]
[1767137505836,0.7222,2974.9,2974.3,2.4647]
[1767137506669,0.7222,2974.8,2974.3,2.4647]
[1767137517466,0.7242,2974.8,2974.3,2.4647]
[1767137518168,0.7242,2974.8,2974.3,2.71117]
[1767137521576,0.7242,2974.8,2974.3,2.4647]
[1767137525381,0.002,2974.9,2974.4,2.3092]
[1767137528554,0.002,2974.9,2974.5,2.3092]
[1767137529551,0.7262,2974.9,2974.5,2.3092]
[1767137538805,0.7262,2974.9,2974.3,0.001]
[1767137539106,0.7232,2974.6,2973.7,3.1984]
[1767137539304,0.7222,2974.4,2973.8,2.3154]
[1767137539470,0.7222,2974.4,2973.7,0.883]
[1767137541198,0.7222,2974.4,2973.7,3.1984]
[1767137549315,0.7242,2974.4,2973.7,3.1984]
[1767137559103,0.7242,2974.4,2973.8,2.3154]
[1767137559709,1.18448269,2974.4,2973.8,2.3154]
[1767137560017,0.7222,2974.3,2973.8,2.3154]
[1767137561216,0.7222,2974.3,2973.5,0.001]
[1767137561217,0.7222,2974.0,2973.5,0.001]
[1767137562210,0.7222,2974.0,2973.5,2.3164]
[1767137562412,0.7212,2973.9,2973.5,2.3164]
[1767137564708,0.7212,2973.9,2973.5,0.001]
[1767137564917,0.7212,2973.9,2973.4,0.001]
[1767137565115,0.7212,2973.9,2973.3,2.3164]
[1767137565810,3.36259169,2973.9,2973.3,2.3164]
[1767137566012,0.7192,2973.7,2973.5,0.001]
[1767137566325,0.7192,2973.7,2973.2,2.311]
[1767137566529,0.7172,2973.6,2973.0,2.311]
[1767137566817,0.7172,2973.6,2972.9,0.001]
[1767137567391,4.08014343,2973.6,2972.9,0.001]
[1767137567622,0.7162,2973.4,2972.9,0.001]
[1767137568917,0.7162,2973.4,2972.9,2.312]
[1767137571519,0.7162,2973.4,2973.0,2.311]
[1767137574226,3.36238825,2974.1,2973.3,2.311]
[1767137574410,0.7162,2973.9,2973.3,2.311]
[1767137574812,0.7162,2973.7,2973.0,2.311]
[1767137579402,0.46228269,2974.4,2973.4,2.311]
[1767137579629,0.7162,2974.3,2973.6,2.311]
[1767137581905,4.44468002,2974.1,2973.4,0.883]
[1767137582117,0.7162,2974.0,2973.4,0.883]
[1767137582318,0.7162,2973.8,2973.3,2.398]
[1767137582726,0.7162,2973.8,2973.1,2.398]
[1767137584416,0.7162,2973.8,2973.2,2.398]
[1767137586736,0.7162,2973.8,2973.3,2.398]
[1767137587110,0.7162,2974.2,2973.4,2.398]
[1767137587306,0.7162,2974.2,2973.6,2.398]
[1767137588437,0.002,2973.8,2973.6,2.398]
[1767137588608,0.7182,2974.4,2973.8,2.398]
[1767137588940,0.002,2974.4,2974.0,2.398]
[1767137589439,0.7162,2974.6,2974.1,2.398]
[1767137595440,0.7182,2974.5,2974.1,2.398]
[1767137604453,0.7202,2974.5,2974.1,2.398]
[1767137607640,0.002,2974.5,2974.1,2.398]
[1767137611935,0.7202,2974.5,2973.8,2.3557]
[1767137612439,0.7202,2974.5,2974.0,0.001]
[1767137612640,0.7202,2974.5,2974.0,2.3567]
[1767137631983,0.002,2974.5,2974.0,2.3567]
[1767137635677,0.7202,2974.5,2974.0,2.3567]
[1767137644988,0.002,2974.5,2974.0,2.3567]
[1767137645191,0.002,2974.5,2974.0,2.92863944]
[1767137645396,0.002,2974.5,2974.0,2.3567]
[1767137646971,0.7202,2974.5,2974.0,2.3567]
[1767137672536,0.7172,2974.0,2973.4,2.4845]
[1767137672915,0.7172,2973.9,2973.4,2.4845]
[1767137675934,0.7172,2974.3,2973.9,2.4845]
[1767137677335,0.40792806,2974.2,2973.9,2.4845]
[1767137681635,0.7172,2974.1,2973.5,2.4845]
[1767137681827,0.7172,2974.1,2973.4,0.001]
[1767137681828,5.16388766,2974.1,2973.4,0.001]
[1767137682032,0.7172,2974.0,2973.4,0.001]
[1767137682230,0.7172,2973.9,2973.4,0.001]
[1767137683519,0.7172,2973.9,2973.4,2.4855]
[1767137689754,0.7172,2973.8,2973.2,2.4512]
[1767137689922,0.7172,2973.8,2973.1,3.3342]
[1767137690452,0.7172,2973.8,2973.2,2.4512]
[1767137690642,0.7162,2973.7,2973.2,2.4512]
[1767137702548,0.7182,2974.0,2973.2,2.4512]
[1767137702755,0.7182,2974.0,2973.2,4.44668766]
[1767137702940,0.7182,2974.0,2973.5,2.2802]
[1767137704238,3.36394304,2974.5,2973.7,2.2802]
[1767137704239,3.36203813,2974.4,2973.7,2.2802]
[1767137704439,0.7182,2974.3,2973.7,2.2802]
[1767137705465,4.0821157,2974.5,2973.7,2.2802]
[1767137706166,0.7182,2974.4,2973.7,2.2802]
[1767137707972,4.08026066,2974.4,2973.7,2.2802]
[1767137709572,0.7182,2974.3,2973.7,2.2802]
[1767137710074,4.08034345,2974.3,2973.7,2.2802]
[1767137710486,0.7182,2974.3,2973.7,2.2802]
[1767137711444,4.08033688,2974.3,2973.7,2.2802]
[1767137712443,0.7182,2974.2,2973.7,2.2802]
[1767137715884,3.36228646,2974.2,2973.7,2.2802]
[1767137716048,0.7182,2974.1,2973.7,2.2802]
[1767137719671,0.7182,2974.0,2973.3,2.3521]
[1767137720078,0.7182,2974.0,2973.1,4.55838154]
[1767137720376,0.7182,2973.9,2973.6,0.001]
[1767137720567,0.7182,2973.9,2973.1,3.2361]
[1767137721349,0.7182,2973.9,2973.1,0.884]
[1767137721549,0.7182,2973.9,2973.2,2.3521]
[1767137722773,3.36259711,2973.9,2973.2,2.3521]
[1767137722961,0.7172,2973.8,2973.2,2.3521]
[1767137723157,1.46382518,2974.3,2973.5,4.44754295]
[1767137723367,1.46382518,2974.3,2973.2,3.36337365]
[1767137723368,0.7172,2974.2,2973.6,2.3521]
[1767137727675,0.7172,2974.1,2973.6,2.3521]
[1767137731682,0.7172,2974.1,2973.5,0.001]
[1767137732186,0.7172,2974.1,2973.5,2.3531]
[1767137736988,0.7192,2974.1,2973.5,2.3531]
[1767137743888,0.002,2974.1,2973.5,2.3531]
[1767137744203,0.7192,2974.3,2973.6,2.38572927]
[1767137744567,0.7192,2974.3,2973.6,2.3521]
[1767137745064,0.002,2974.1,2973.6,2.3521]
[1767137745468,0.7192,2974.3,2973.5,0.001]
[1767137745681,0.7192,2974.3,2973.6,2.3521]
[1767137804250,0.7192,2974.3,2973.6,2.3021]
[1767137822844,0.7712,2974.2,2973.6,2.3021]
[1767137831677,0.7732,2974.2,2973.6,2.3021]
[1767137839473,0.7732,2974.2,2973.5,0.001]
[1767137839673,0.7712,2974.1,2973.5,0.001]
[1767137839992,0.7712,2974.1,2973.5,2.2613]
[1767137853813,0.002,2974.2,2973.5,2.2613]
[1767137854018,0.002,2974.3,2973.6,0.883]
[1767137854172,0.002,2974.3,2973.7,2.2603]
[1767137854499,0.002,2974.3,2973.9,2.2603]
[1767137856103,0.002,2974.1,2973.9,2.2603]
[1767137867384,0.002,2974.3,2973.9,2.3982]
[1767137872309,0.002,2974.4,2974.0,2.3982]
[1767137872698,0.002,2974.6,2974.2,2.3982]
[1767137872899,0.7812,2974.7,2973.9,0.001]
[1767137873100,7.81173216,2974.8,2973.6,2.3982]
[1767137873101,0.7812,2974.4,2973.6,2.3982]
[1767137873294,0.7802,2974.1,2973.4,2.3982]
[1767137874886,3.36207129,2974.4,2973.5,2.4318304]
[1767137874887,0.7792,2974.4,2973.5,2.4318304]
[1767137875085,0.7792,2974.4,2973.5,2.3982]
[1767137875318,1.36754425,2974.4,2973.5,2.3982]
[1767137875616,0.7792,2974.4,2973.5,2.3982]
[1767137876983,0.7792,2974.4,2973.6,2.3982]
[1767137877188,0.7792,2974.4,2973.8,2.3982]
[1767137877390,0.7792,2974.6,2973.8,2.3982]
[1767137879625,0.7792,2974.6,2973.8,2.3992]
[1767137879992,0.7812,2974.6,2973.8,2.63912]
[1767137880189,0.7812,2974.6,2973.8,3.6036068]
[1767137880424,0.7812,2974.6,2973.9,2.3058]
[1767137880822,0.7812,2974.6,2973.9,2.33942587]
[1767137881129,0.7812,2974.6,2974.1,2.3058]
[1767137881331,0.7812,2974.8,2974.2,2.3058]
[1767137905051,3.36357666,2974.8,2974.0,3.1742]
[1767137905252,0.7812,2974.7,2974.0,3.1742]
[1767137905654,0.7812,2974.7,2974.1,0.001]
[1767137906021,0.7812,2974.7,2974.1,2.2922]
[1767137910852,0.002,2974.8,2974.1,2.60982]
[1767137911154,0.002,2974.8,2973.9,0.001]
[1767137911155,0.7802,2974.3,2973.9,0.001]
[1767137914836,0.7802,2974.3,2973.9,2.2922]
[1767137922279,0.7822,2974.3,2973.9,2.2922]
[1767137940660,0.7822,2974.3,2973.8,0.001]
[1767137941191,0.7822,2974.3,2973.7,2.3961]
[1767137941192,0.7782,2974.2,2973.7,2.3961]
[1767137941489,0.7782,2974.0,2973.4,0.883]
[1767137942693,0.7782,2974.0,2973.4,3.2791]
[1767137945689,0.7782,2974.0,2973.5,2.3961]
[1767137952191,0.7782,2974.0,2973.4,0.001]
[1767137952386,2.4792,2973.4,2972.9,2.3971]
[1767137952721,2.4792,2973.2,2972.9,0.001]
[1767137955922,2.4792,2973.2,2972.9,2.3971]
[1767137956077,2.4792,2973.7,2972.9,2.3971]
[1767137957518,3.36289536,2973.7,2972.9,2.3971]
[1767137957828,2.4653,2973.6,2972.9,2.3971]
[1767137959426,0.91909254,2973.6,2972.9,2.3971]